fUSD/lending_fUSD_20251019
["ID","MTS","AMOUNT","RATE_DAILY","PERIOD"]
[391851687,1760914256214,-500.0,0.00034794,8]
[391851688,1760914256223,-550.89,0.00034794,8]
[391851689,1760914256233,-1497.87,0.00034794,4]
[391851690,1760914256242,-500.0,0.00034794,8]
[391851691,1760914256251,-500.0,0.00034794,8]
[391851692,1760914256261,-2948.81,0.00034794,2]
[391851693,1760914256271,-893.82,0.00034794,8]
[391851694,1760914256280,-500.0,0.00034794,8]
[391851695,1760914256290,-688.48,0.00034794,8]
[391851696,1760914256299,-855.19,0.00034794,8]
[391851697,1760914256308,-500.0,0.00034794,8]
[391851698,1760914256317,-500.0,0.00034794,8]
[391851699,1760914256327,-500.0,0.00034794,8]
[391851700,1760914256335,-500.0,0.00034794,8]
[391851701,1760914256344,-604.79,0.00034794,8]
[391851702,1760914256353,-500.0,0.00034794,8]
[391851703,1760914256363,-586.56,0.00034794,8]
[391851704,1760914256372,-500.0,0.00034794,8]
[391851705,1760914256381,-500.0,0.00034794,8]
[391851706,1760914256390,-631.41,0.00034794,8]
[391851707,1760914256399,-667.66,0.00034794,8]
[391851708,1760914256408,-618.32,0.00034794,8]
[391851709,1760914256417,-500.0,0.00034794,8]
[391851710,1760914256427,-1091.0,0.00034859,5]
[391851711,1760914256437,-500.0,0.00034864,7]
[391851712,1760914256446,-2172.07,0.000349,2]
[391851713,1760914256456,-171.47435773,0.00034917,15]
[391851714,1760914256465,-475.23364478,0.0003492,2]
[391851715,1760914256475,-1200.0,0.0003494,7]
[391851716,1760914256486,-500.0,0.0003495,7]
[391851717,1760914256495,-600.0,0.00034992,7]
[391851718,1760914256504,-150.0,0.00034993,2]
[391851719,1760914256514,-150.0,0.00034993,2]
[391851720,1760914256523,-150.0,0.00034993,2]
[391851721,1760914256532,-150.0,0.00034993,2]
[391851722,1760914256541,-150.0,0.00034993,2]
[391851723,1760914256550,-1000.0,0.00035,2]
[391851724,1760914256559,-150.0,0.00035,90]
[391851725,1760914256568,-234.3,0.00035,2]
[391851726,1760914256578,-17191.14,0.00035,2]
[391851727,1760914256587,-10030.6599693,0.00035,120]
[391851728,1760914256597,-163.51521852,0.00035,120]
[391851729,1760914256606,-402.20060173,0.00035,120]
[391851730,1760914256616,-230.74094221,0.00035,120]
[391851731,1760914256625,-11980.18,0.00035,14]
[391851732,1760914256635,-475.82771539,0.00035,30]
[391851733,1760914256644,-565.02,0.00035028,15]
[391851734,1760914256654,-529.29,0.00035068,8]
[391851735,1760914256663,-300.0,0.00035068,8]
[391851736,1760914256672,-590.38,0.00035068,2]
[391851737,1760914256682,-500.0,0.00035068,2]
[391851738,1760914256691,-500.0,0.00035068,8]
[391851739,1760914256700,-500.0,0.00035068,8]
[391851740,1760914256710,-733.54,0.00035068,8]
[391851741,1760914256722,-500.0,0.00035068,8]
[391851742,1760914256731,-500.0,0.00035068,8]
[391851743,1760914256741,-691.38,0.00035068,8]
[391851744,1760914256750,-691.65,0.00035068,8]
[391851745,1760914256759,-340.30488053,0.00035068,8]
[391851746,1760914256769,-695.41,0.00035068,8]
[391851747,1760914256778,-602.05,0.00035068,8]
[391851748,1760914256788,-500.0,0.00035068,8]
[391851749,1760914256797,-680.15,0.00035068,8]
[391851750,1760914256807,-500.0,0.00035068,8]
[391851751,1760914256816,-500.0,0.00035068,8]
[391851752,1760914256826,-603.08,0.00035068,8]
[391851753,1760914256835,-500.0,0.00035068,8]
[391851754,1760914256845,-500.0,0.00035068,8]
[391851755,1760914256855,-526.81,0.00035068,8]
[391851756,1760914256864,-500.0,0.00035068,8]
[391851757,1760914256874,-687.05,0.00035068,8]
[391851758,1760914256883,-500.0,0.00035068,8]
[391851759,1760914256893,-185.22259785,0.00035068,2]
[391851760,1760914256902,-500.0,0.00035068,8]
[391851761,1760914256911,-519.69,0.00035068,8]
[391851762,1760914256922,-654.36,0.00035068,8]
[391851763,1760914256935,-500.0,0.00035068,8]
[391851764,1760914256945,-500.0,0.00035068,8]
[391851765,1760914256955,-500.0,0.00035068,8]
[391851766,1760914256966,-543.04,0.00035068,8]
[391851767,1760914256976,-500.0,0.00035068,8]
[391851768,1760914256986,-500.0,0.00035068,8]
[391851769,1760914256995,-795.62,0.00035068,8]
[391851770,1760914257011,-500.0,0.00035068,8]
[391851771,1760914257020,-500.0,0.00035068,8]
[391851772,1760914257030,-500.0,0.00035068,8]
[391851773,1760914257161,-550.89,0.00035068,8]
[391851774,1760914257177,-1497.87,0.00035068,4]
[391851775,1760914257187,-500.0,0.00035068,8]
[391851776,1760914257196,-500.0,0.00035068,8]
[391851777,1760914257206,-2948.81,0.00035068,2]
[391851778,1760914257216,-893.82,0.00035068,8]
[391851779,1760914257226,-500.0,0.00035068,8]
[391851780,1760914257236,-688.48,0.00035068,8]
[391851781,1760914257245,-855.19,0.00035068,8]
[391851782,1760914257256,-500.0,0.00035068,8]
[391851783,1760914257266,-500.0,0.00035068,8]
[391851784,1760914257276,-484.93996482,0.00035068,8]
[391851785,1760914257285,-500.0,0.00035068,8]
[391851786,1760914257295,-604.79,0.00035068,8]
[391851787,1760914257304,-500.0,0.00035068,8]
[391851788,1760914257314,-586.56,0.00035068,8]
[391851789,1760914257324,-500.0,0.00035068,8]
[391851790,1760914257334,-631.41,0.00035068,8]
[391851791,1760914257343,-667.66,0.00035068,8]
[391851792,1760914257353,-618.32,0.00035068,8]
[391851793,1760914257363,-500.0,0.00035068,8]
[391851794,1760914257372,-1200.0,0.0003507,30]
[391851795,1760914257382,-364.93,0.000351,30]
[391851796,1760914257392,-600.0,0.00035103,30]
[391851797,1760914257401,-1200.0,0.00035116,30]
[391851798,1760914257411,-1200.0,0.00035121,30]
[391851799,1760914257421,-1300.0,0.00035133,30]
[391851800,1760914257430,-500.0,0.00035136,30]
[391851801,1760914257440,-500.0,0.0003514,30]
[391851802,1760914257449,-600.0,0.00035183,30]
[391851803,1760914257459,-11980.18,0.000352,14]
[391851804,1760914257468,-539.49449158,0.00035208,30]
[391851805,1760914257478,-2662.0,0.00035221,2]
[391851806,1760914257488,-1300.0,0.00035222,30]
[391851807,1760914257497,-308.82109805,0.00035242,2]
[391851808,1760914257507,-1200.0,0.00035246,30]
[391851809,1760914257517,-1200.0,0.00035257,30]
[391851810,1760914257527,-512.40581831,0.00035257,30]
[391851811,1760914257536,-1300.0,0.00035297,30]
[391851812,1760914257546,-1200.0,0.00035319,30]
[391851813,1760914257556,-500.0,0.00035341,30]
[391851814,1760914257565,-529.29,0.00035342,8]
[391851815,1760914257575,-300.0,0.00035342,8]
[391851816,1760914257585,-590.38,0.00035342,2]
[391851817,1760914257595,-500.0,0.00035342,2]
[391851818,1760914257604,-500.0,0.00035342,8]
[391851819,1760914257614,-500.0,0.00035342,8]
[391851820,1760914257623,-733.54,0.00035342,8]
[391851821,1760914257633,-500.0,0.00035342,8]
[391851822,1760914257643,-500.0,0.00035342,8]
[391851823,1760914257652,-691.38,0.00035342,8]
[391851824,1760914257662,-691.65,0.00035342,8]
[391851825,1760914257671,-695.41,0.00035342,8]
[391851826,1760914257681,-602.05,0.00035342,8]
[391851827,1760914257690,-500.0,0.00035342,8]
[391851828,1760914257699,-680.15,0.00035342,8]
[391851829,1760914257709,-500.0,0.00035342,8]
[391851830,1760914257719,-500.0,0.00035342,8]
[391851831,1760914257728,-603.08,0.00035342,8]
[391851832,1760914257738,-500.0,0.00035342,8]
[391851833,1760914257747,-500.0,0.00035342,8]
[391851834,1760914257756,-526.81,0.00035342,8]
[391851835,1760914257765,-500.0,0.00035342,8]
[391851836,1760914257774,-687.05,0.00035342,8]
[391851837,1760914257784,-500.0,0.00035342,8]
[391851838,1760914257793,-151.22,0.00035342,8]
[391851839,1760914257803,-519.69,0.00035342,8]
[391851840,1760914257812,-654.36,0.00035342,8]
[391851841,1760914257823,-254.84000001,0.00035342,8]
[391851842,1760914257832,-500.0,0.00035342,8]
[391851843,1760914257841,-500.0,0.00035342,8]
[391851844,1760914257851,-543.04,0.00035342,8]
[391851845,1760914257860,-172.37555532,0.00035342,8]
[391851846,1760914257870,-500.0,0.00035342,8]
[391851847,1760914257879,-795.62,0.00035342,8]
[391851848,1760914257889,-500.0,0.00035342,8]
[391851849,1760914257898,-500.0,0.00035342,8]
[391851850,1760914257907,-500.0,0.00035342,8]
[391851851,1760914257916,-550.89,0.00035342,8]
[391851852,1760914257927,-1497.87,0.00035342,4]
[391851853,1760914257938,-500.0,0.00035342,8]
[391851854,1760914257947,-500.0,0.00035342,8]
[391851855,1760914257957,-2948.81,0.00035342,2]
[391851856,1760914257967,-893.82,0.00035342,8]
[391851857,1760914257976,-500.0,0.00035342,8]
[391851858,1760914257985,-688.48,0.00035342,8]
[391851859,1760914257995,-855.19,0.00035342,8]
[391851860,1760914258007,-500.0,0.00035342,8]
[391851861,1760914258017,-500.0,0.00035342,8]
[391851862,1760914258026,-304.39,0.00035342,8]
[391851863,1760914258035,-604.79,0.00035342,8]
[391851864,1760914258045,-500.0,0.00035342,8]
[391851865,1760914258055,-586.56,0.00035342,8]
[391851866,1760914258064,-500.0,0.00035342,8]
[391851867,1760914258073,-631.41,0.00035342,8]
[391851868,1760914258083,-667.66,0.00035342,8]
[391851869,1760914258092,-618.32,0.00035342,8]
[391851870,1760914258101,-500.0,0.00035342,8]
[391851871,1760914258111,-151.0,0.00035347,30]
[391851872,1760914258120,-151.0,0.00035347,30]
[391851873,1760914258130,-151.0,0.00035347,30]
[391851874,1760914258139,-151.0,0.00035347,30]
[391851875,1760914258148,-151.0,0.00035347,30]
[391851876,1760914258158,-151.0,0.00035347,8]
[391851877,1760914258167,-151.0,0.00035347,8]
[391851878,1760914258177,-151.0,0.00035347,8]
[391851879,1760914258186,-151.0,0.00035347,8]
[391851880,1760914258196,-500.0,0.00035377,30]
[391851881,1760914258205,-1300.0,0.00035394,30]
[391851882,1760914258215,-600.0,0.00035446,30]
[391851883,1760914258224,-1200.0,0.00035473,30]
[391851884,1760914258234,-782.57,0.00035484,2]
[391851885,1760914258243,-1300.0,0.00035485,30]
[391851886,1760914258252,-5888.0,0.00035503,2]
[391851887,1760914258262,-500.0,0.00035508,30]
[391851888,1760914258271,-500.0,0.00035534,30]
[391851889,1760914258281,-1200.0,0.00035579,30]
[391851890,1760914258291,-2000.0,0.0003559,120]
[391851891,1760914258300,-500.0,0.0003559,120]
[391851892,1760914258309,-500.0,0.00035594,30]
[391851893,1760914258319,-160.0,0.000356,120]
[391851894,1760914258328,-529.29,0.00035616,8]
[391851895,1760914258338,-300.0,0.00035616,8]
[391851896,1760914258347,-590.38,0.00035616,2]
[391851897,1760914258357,-500.0,0.00035616,2]
[391851898,1760914258366,-500.0,0.00035616,8]
[391851899,1760914258375,-500.0,0.00035616,8]
[391851900,1760914258385,-733.54,0.00035616,8]
[391851901,1760914258394,-500.0,0.00035616,8]
[391851902,1760914258403,-500.0,0.00035616,8]
[391851903,1760914258412,-691.38,0.00035616,8]
[391851904,1760914258422,-691.65,0.00035616,8]
[391851905,1760914258432,-695.41,0.00035616,8]
[391851906,1760914258441,-602.05,0.00035616,8]
[391851907,1760914258450,-500.0,0.00035616,8]
[391851908,1760914258459,-680.15,0.00035616,8]
[391851909,1760914258469,-500.0,0.00035616,8]
[391851910,1760914258478,-500.0,0.00035616,8]
[391851911,1760914258487,-603.08,0.00035616,8]
[391851912,1760914258496,-500.0,0.00035616,8]
[391851913,1760914258506,-500.0,0.00035616,8]
[391851914,1760914258515,-526.81,0.00035616,8]
[391851915,1760914258524,-500.0,0.00035616,8]
[391851916,1760914258533,-687.05,0.00035616,8]
[391851917,1760914258543,-500.0,0.00035616,8]
[391851918,1760914258553,-519.69,0.00035616,8]
[391851919,1760914258563,-654.36,0.00035616,8]
[391851920,1760914258572,-267.88614127,0.00035616,8]
[391851921,1760914258581,-500.0,0.00035616,8]
[391851922,1760914258590,-543.04,0.00035616,8]
[391851923,1760914258600,-542.99518836,0.00035616,8]
[391851924,1760914258609,-795.62,0.00035616,8]
[391851925,1760914258618,-500.0,0.00035616,8]
[391851926,1760914258627,-500.0,0.00035616,8]
[391851927,1760914258637,-500.0,0.00035616,8]
[391851928,1760914258646,-550.89,0.00035616,8]
[391851929,1760914258656,-1497.87,0.00035616,4]
[391851930,1760914258666,-500.0,0.00035616,8]
[391851931,1760914258675,-500.0,0.00035616,8]
[391851932,1760914258684,-2948.81,0.00035616,2]
[391851933,1760914258694,-893.82,0.00035616,8]
[391851934,1760914258703,-500.0,0.00035616,8]
[391851935,1760914258712,-688.48,0.00035616,8]
[391851936,1760914258722,-855.19,0.00035616,8]
[391851937,1760914258731,-500.0,0.00035616,8]
[391851938,1760914258740,-500.0,0.00035616,8]
[391851939,1760914258749,-604.79,0.00035616,8]
[391851940,1760914258759,-500.0,0.00035616,8]
[391851941,1760914258768,-586.56,0.00035616,8]
[391851942,1760914258777,-500.0,0.00035616,8]
[391851943,1760914258786,-631.41,0.00035616,8]
[391851944,1760914258796,-667.66,0.00035616,8]
[391851945,1760914258806,-618.32,0.00035616,8]
[391851946,1760914258816,-500.0,0.00035616,8]
[391851947,1760914258825,-500.0,0.00035656,30]
[391851948,1760914258835,-1300.0,0.00035753,30]
[391851949,1760914258844,-600.0,0.00035763,30]
[391851950,1760914258854,-600.0,0.0003585,30]
[391851951,1760914258863,-500.0,0.00035857,30]
[391851952,1760914258873,-701.89041,0.00035888,30]
[391851953,1760914258883,-529.29,0.0003589,8]
[391851954,1760914258892,-300.0,0.0003589,8]
[391851955,1760914258901,-590.38,0.0003589,2]
[391851956,1760914258911,-500.0,0.0003589,2]
[391851957,1760914258921,-500.0,0.0003589,8]
[391851958,1760914258935,-500.0,0.0003589,8]
[391851959,1760914258945,-733.54,0.0003589,8]
[391851960,1760914258955,-500.0,0.0003589,8]
[391851961,1760914258964,-500.0,0.0003589,8]
[391851962,1760914258975,-691.38,0.0003589,8]
[391851963,1760914258985,-691.65,0.0003589,8]
[391851964,1760914258994,-695.41,0.0003589,8]
[391851965,1760914259004,-602.05,0.0003589,8]
[391851966,1760914259013,-500.0,0.0003589,8]
[391851967,1760914259023,-680.15,0.0003589,8]
[391851968,1760914259032,-500.0,0.0003589,8]
[391851969,1760914259043,-500.0,0.0003589,8]
[391851970,1760914259053,-603.08,0.0003589,8]
[391851971,1760914259062,-500.0,0.0003589,8]
[391851972,1760914259072,-500.0,0.0003589,8]
[391851973,1760914259082,-526.81,0.0003589,8]
[391851974,1760914259091,-500.0,0.0003589,8]
[391851975,1760914259101,-687.05,0.0003589,8]
[391851976,1760914259110,-500.0,0.0003589,8]
[391851977,1760914259119,-519.69,0.0003589,8]
[391851978,1760914259128,-654.36,0.0003589,8]
[391851979,1760914259138,-500.0,0.0003589,8]
[391851980,1760914259147,-543.04,0.0003589,8]
[391851981,1760914259156,-795.62,0.0003589,8]
[391851982,1760914259165,-500.0,0.0003589,8]
[391851983,1760914259175,-500.0,0.0003589,8]
[391851984,1760914259184,-500.0,0.0003589,8]
[391851985,1760914259194,-550.89,0.0003589,8]
[391851986,1760914259203,-1497.87,0.0003589,4]
[391851987,1760914259212,-500.0,0.0003589,8]
[391851988,1760914259221,-500.0,0.0003589,8]
[391851989,1760914259230,-2948.81,0.0003589,2]
[391851990,1760914259239,-893.82,0.0003589,8]
[391851991,1760914259248,-545.42,0.0003589,8]
[391851992,1760914259257,-688.48,0.0003589,8]
[391851993,1760914259266,-855.19,0.0003589,8]
[391851994,1760914259275,-500.0,0.0003589,8]
[391851995,1760914259284,-500.0,0.0003589,8]
[391851996,1760914259293,-604.79,0.0003589,8]
[391851997,1760914259302,-500.0,0.0003589,8]
[391851998,1760914259311,-586.56,0.0003589,8]
[391851999,1760914259321,-500.0,0.0003589,8]
[391852000,1760914259330,-631.41,0.0003589,8]
[391852001,1760914259339,-667.66,0.0003589,8]
[391852002,1760914259348,-618.32,0.0003589,8]
[391852003,1760914259357,-500.0,0.0003589,8]
[391852004,1760914259367,-600.0,0.0003598,30]
[391852005,1760914259376,-10030.6599693,0.00036,120]
[391852006,1760914259386,-402.20060173,0.00036,120]
[391852007,1760914259395,-230.74094221,0.00036,120]
[391852008,1760914259405,-11980.18,0.00036,14]
[391852009,1760914259414,-3401.0,0.00036015,2]
[391852010,1760914259424,-660.161,0.00036015,2]
[391852011,1760914259433,-378.4,0.00036015,2]
[391852012,1760914259443,-1309.0,0.00036015,2]
[391852013,1760914259452,-605.0,0.00036015,2]
[391852014,1760914259462,-1125.01,0.00036015,2]
[391852015,1760914259471,-571.0,0.00036015,2]
[391852016,1760914259481,-2590.0,0.00036015,2]
[391852017,1760914259491,-500.0,0.00036042,30]
[391852018,1760914259501,-701.89041,0.00036088,30]
[391852019,1760914259542,-2172.07,0.000361,2]
[391852020,1760914259552,-172.31,0.00036105,60]
[391852021,1760914259561,-299.74,0.00036141,3]
[391852022,1760914259571,-1200.0,0.00036142,30]
[391852023,1760914259580,-529.29,0.00036164,8]
[391852024,1760914259589,-300.0,0.00036164,8]
[391852025,1760914259598,-590.38,0.00036164,2]
[391852026,1760914259608,-500.0,0.00036164,2]
[391852027,1760914259617,-500.0,0.00036164,8]
[391852028,1760914259626,-500.0,0.00036164,8]
[391852029,1760914259636,-733.54,0.00036164,8]
[391852030,1760914259645,-500.0,0.00036164,8]
[391852031,1760914259654,-500.0,0.00036164,8]
[391852032,1760914259664,-691.38,0.00036164,8]
[391852033,1760914259673,-691.65,0.00036164,8]
[391852034,1760914259682,-695.41,0.00036164,8]
[391852035,1760914259692,-602.05,0.00036164,8]
[391852036,1760914259701,-500.0,0.00036164,8]
[391852037,1760914259711,-680.15,0.00036164,8]
[391852038,1760914259719,-500.0,0.00036164,8]
[391852039,1760914259729,-500.0,0.00036164,8]
[391852040,1760914259738,-603.08,0.00036164,8]
[391852041,1760914259747,-500.0,0.00036164,8]
[391852042,1760914259756,-500.0,0.00036164,8]
[391852043,1760914259765,-526.81,0.00036164,8]
[391852044,1760914259774,-500.0,0.00036164,8]
[391852045,1760914259784,-687.05,0.00036164,8]
[391852046,1760914259792,-500.0,0.00036164,8]
[391852047,1760914259801,-519.69,0.00036164,8]
[391852048,1760914259811,-654.36,0.00036164,8]
[391852049,1760914259820,-500.0,0.00036164,8]
[391852050,1760914259829,-543.04,0.00036164,8]
[391852051,1760914259839,-795.62,0.00036164,8]
[391852052,1760914259848,-500.0,0.00036164,8]
[391852053,1760914259858,-461.39484186,0.00036164,8]
[391852054,1760914259867,-500.0,0.00036164,8]
[391852055,1760914259876,-550.89,0.00036164,8]
[391852056,1760914259886,-1497.87,0.00036164,4]
[391852057,1760914259896,-500.0,0.00036164,8]
[391852058,1760914259905,-500.0,0.00036164,8]
[391852059,1760914259915,-2948.81,0.00036164,2]
[391852060,1760914259925,-893.82,0.00036164,8]
[391852061,1760914259937,-688.48,0.00036164,8]
[391852062,1760914259946,-855.19,0.00036164,8]
[391852063,1760914259955,-500.0,0.00036164,8]
[391852064,1760914259965,-500.0,0.00036164,8]
[391852065,1760914259975,-604.79,0.00036164,8]
[391852066,1760914259984,-500.0,0.00036164,8]
[391852067,1760914259994,-586.56,0.00036164,8]
[391852068,1760914260005,-500.0,0.00036164,8]
[391852069,1760914260015,-631.41,0.00036164,8]
[391852070,1760914260024,-667.66,0.00036164,8]
[391852071,1760914260033,-618.32,0.00036164,8]
[391852072,1760914260042,-500.0,0.00036164,8]
[391852073,1760914260052,-508.36183542,0.0003617,30]
[391852074,1760914260062,-500.0,0.00036204,30]
[391852075,1760914260071,-500.0,0.0003624,30]
[391852076,1760914260081,-152.0,0.00036276,3]
[391852077,1760914260090,-500.0,0.00036279,30]
[391852078,1760914260099,-701.89041,0.00036288,30]
[391852079,1760914260109,-364.93,0.000363,30]
[391852080,1760914260118,-1200.0,0.00036311,30]
[391852081,1760914260127,-10000.0,0.000364,30]
[391852082,1760914260137,-1538.0,0.000364,2]
[391852083,1760914260146,-500.0,0.00036403,30]
[391852084,1760914260155,-164.72967243,0.00036428,30]
[391852085,1760914260165,-529.29,0.00036438,8]
[391852086,1760914260174,-590.38,0.00036438,2]
[391852087,1760914260184,-500.0,0.00036438,2]
[391852088,1760914260194,-500.0,0.00036438,8]
[391852089,1760914260203,-733.54,0.00036438,8]
[391852090,1760914260213,-500.0,0.00036438,8]
[391852091,1760914260224,-500.0,0.00036438,8]
[391852092,1760914260233,-691.38,0.00036438,8]
[391852093,1760914260243,-691.65,0.00036438,8]
[391852094,1760914260252,-695.41,0.00036438,8]
[391852095,1760914260262,-602.05,0.00036438,8]
[391852096,1760914260272,-500.0,0.00036438,8]
[391852097,1760914260281,-680.15,0.00036438,8]
[391852098,1760914260291,-500.0,0.00036438,8]
[391852099,1760914260301,-500.0,0.00036438,8]
[391852100,1760914260310,-603.08,0.00036438,8]
[391852101,1760914260320,-500.0,0.00036438,8]
[391852102,1760914260329,-500.0,0.00036438,8]
[391852103,1760914260339,-526.81,0.00036438,8]
[391852104,1760914260349,-432.66,0.00036438,8]
[391852105,1760914260358,-687.05,0.00036438,8]
[391852106,1760914260368,-500.0,0.00036438,8]
[391852107,1760914260377,-519.69,0.00036438,8]
[391852108,1760914260388,-654.36,0.00036438,8]
[391852109,1760914260398,-500.0,0.00036438,8]
[391852110,1760914260407,-543.04,0.00036438,8]
[391852111,1760914260418,-795.62,0.00036438,8]
[391852112,1760914260427,-500.0,0.00036438,8]
[391852113,1760914260437,-500.0,0.00036438,8]
[391852114,1760914260446,-550.89,0.00036438,8]
[391852115,1760914260456,-1497.87,0.00036438,4]
[391852116,1760914260467,-500.0,0.00036438,8]
[391852117,1760914260477,-500.0,0.00036438,8]
[391852118,1760914260487,-2948.81,0.00036438,2]
[391852119,1760914260496,-893.82,0.00036438,8]
[391852120,1760914260506,-688.48,0.00036438,8]
[391852121,1760914260516,-855.19,0.00036438,8]
[391852122,1760914260526,-500.0,0.00036438,8]
[391852123,1760914260535,-500.0,0.00036438,8]
[391852124,1760914260545,-604.79,0.00036438,8]
[391852125,1760914260555,-500.0,0.00036438,8]
[391852126,1760914260565,-586.56,0.00036438,8]
[391852127,1760914260574,-500.0,0.00036438,8]
[391852128,1760914260584,-631.41,0.00036438,8]
[391852129,1760914260594,-667.66,0.00036438,8]
[391852130,1760914260604,-618.32,0.00036438,8]
[391852131,1760914260614,-1300.0,0.00036444,30]
[391852132,1760914260624,-1200.0,0.00036452,30]
[391852133,1760914260634,-1200.0,0.00036462,30]
[391852134,1760914260643,-701.89041,0.00036488,30]
[391852135,1760914260653,-500.0,0.00036568,30]
[391852136,1760914260662,-500.0,0.00036575,30]
[391852137,1760914260672,-1300.0,0.00036588,30]
[391852138,1760914260681,-701.89041,0.00036688,30]
[391852139,1760914260690,-1091.0,0.00036694,5]
[391852140,1760914260700,-529.29,0.00036712,8]
[391852141,1760914260709,-590.38,0.00036712,2]
[391852142,1760914260719,-500.0,0.00036712,2]
[391852143,1760914260729,-500.0,0.00036712,8]
[391852144,1760914260738,-733.54,0.00036712,8]
[391852145,1760914260747,-262.65215194,0.00036712,8]
[391852146,1760914260757,-365.3541495,0.00036712,8]
[391852147,1760914260767,-691.38,0.00036712,8]
[391852148,1760914260776,-691.65,0.00036712,8]
[391852149,1760914260785,-695.41,0.00036712,8]
[391852150,1760914260794,-602.05,0.00036712,8]
[391852151,1760914260804,-500.0,0.00036712,8]
[391852152,1760914260813,-680.15,0.00036712,8]
[391852153,1760914260824,-500.0,0.00036712,8]
[391852154,1760914260833,-500.0,0.00036712,8]
[391852155,1760914260843,-603.08,0.00036712,8]
[391852156,1760914260852,-500.0,0.00036712,8]
[391852157,1760914260861,-500.0,0.00036712,8]
[391852158,1760914260871,-526.81,0.00036712,8]
[391852159,1760914260880,-687.05,0.00036712,8]
[391852160,1760914260890,-500.0,0.00036712,8]
[391852161,1760914260900,-519.69,0.00036712,8]
[391852162,1760914260910,-654.36,0.00036712,8]
[391852163,1760914260919,-500.0,0.00036712,8]
[391852164,1760914260933,-543.04,0.00036712,8]
[391852165,1760914260943,-795.62,0.00036712,8]
[391852166,1760914260953,-500.0,0.00036712,8]
[391852167,1760914260962,-154.14,0.00036712,8]
[391852168,1760914260974,-550.89,0.00036712,8]
[391852169,1760914260983,-1497.87,0.00036712,4]
[391852170,1760914260993,-500.0,0.00036712,8]
[391852171,1760914261005,-500.0,0.00036712,8]
[391852172,1760914261015,-2948.81,0.00036712,2]
[391852173,1760914261025,-893.82,0.00036712,8]
[391852174,1760914261034,-688.48,0.00036712,8]
[391852175,1760914261044,-855.19,0.00036712,8]
[391852176,1760914261054,-301.72430718,0.00036712,8]
[391852177,1760914261063,-500.0,0.00036712,8]
[391852178,1760914261073,-604.79,0.00036712,8]
[391852179,1760914261083,-500.0,0.00036712,8]
[391852180,1760914261092,-586.56,0.00036712,8]
[391852181,1760914261102,-500.0,0.00036712,8]
[391852182,1760914261111,-631.41,0.00036712,8]
[391852183,1760914261121,-667.66,0.00036712,8]
[391852184,1760914261130,-618.32,0.00036712,8]
[391852185,1760914261139,-500.0,0.00036728,30]
[391852186,1760914261149,-2172.07,0.000368,2]